bitfinex-derivatives/quotes_BNBF0:USTF0_20250211
["timestamp","ask_amount","ask_price","bid_price","bid_amount"]
[1739300135943,0.31765696,629.61,628.09,0.29208884]
[1739300136244,0.31767209,629.58,628.1,0.29208884]
[1739300136437,0.31767209,629.58,628.11,0.29208884]
[1739300136638,0.31767209,629.58,628.09,0.29208884]
[1739300136944,0.31767209,629.58,628.08,0.31843077]
[1739300137140,0.31767209,629.58,628.09,0.29208884]
[1739300137338,0.31767209,629.58,628.1,0.31842063]
[1739300137537,0.31767209,629.58,628.11,0.29208884]
[1739300138040,0.31767209,629.58,628.12,0.31841049]
[1739300138240,0.31767209,629.58,628.13,0.29208884]
[1739300138443,0.31767209,629.58,628.14,0.31840035]
[1739300138645,0.31767209,629.58,628.15,0.29208884]
[1739300138944,0.31767209,629.58,628.16,0.61047668]
[1739300139140,0.31767209,629.58,628.17,0.61047162]
[1739300139446,0.31767209,629.58,628.18,0.61046655]
[1739300139647,0.31767209,629.58,628.19,0.29208647]
[1739300142644,0.31767209,629.58,628.18,0.31838008]
[1739300142846,0.31767209,629.58,628.19,0.29208561]
[1739300147252,0.31767209,629.58,628.2,0.31836994]
[1739300147446,0.31767209,629.58,628.21,0.29208561]
[1739300147649,0.31767209,629.58,628.22,0.31835981]
[1739300147951,0.31767209,629.58,628.23,0.29208561]
[1739300148146,0.31767209,629.58,628.24,0.31834967]
[1739300148550,0.31767209,629.58,628.25,0.29208561]
[1739300149056,0.31767209,629.58,628.25,0.61043021]
[1739300149353,0.31767209,629.58,628.26,0.29208561]
[1739300151955,0.31767209,629.58,628.27,0.31833447]
[1739300152156,0.31767209,629.58,628.28,0.29208561]
[1739300153450,0.31767209,629.58,628.29,0.31832434]
[1739300153650,0.31767209,629.58,628.3,0.29208561]
[1739300154055,0.31767209,629.58,628.31,0.29205257]
[1739300154248,0.31767209,629.58,628.32,0.29205257]
[1739300154452,0.31767209,629.58,628.3,0.29205257]
[1739300154652,0.31767209,629.58,628.31,0.29205257]
[1739300154957,0.31767209,629.58,628.32,0.29205257]
[1739300155152,0.31767209,629.58,628.3,0.29205257]
[1739300155953,0.31767209,629.58,628.29,0.31832434]
[1739300156153,0.31767209,629.58,628.3,0.29206687]
[1739300157354,0.31767209,629.58,628.31,0.3183142]
[1739300157556,0.31767209,629.58,628.32,0.29206687]
[1739300157858,0.31767209,629.58,628.33,0.29202211]
[1739300158056,0.31767209,629.58,628.34,0.29202211]
[1739300158251,0.31767209,629.58,628.35,0.29202211]
[1739300158456,0.31767209,629.58,628.36,0.29202211]
[1739300158653,0.31767209,629.58,628.37,0.29202211]
[1739300158853,0.31767209,629.58,628.38,0.29202211]
[1739300159054,0.31767209,629.58,628.39,0.29202211]
[1739300159255,0.31767209,629.58,628.4,0.29202211]
[1739300159656,0.31767209,629.58,628.41,0.2920211]
[1739300159850,0.31767209,629.58,628.42,0.2920211]
[1739300160054,0.31767209,629.58,628.43,0.2920211]
[1739300160255,0.31767209,629.58,628.44,0.2920211]
[1739300160459,0.31767209,629.58,628.45,0.2920211]
[1739300160758,0.31767209,629.58,628.46,0.2920211]
[1739300161058,0.31767209,629.58,628.33,0.2920211]
[1739300161260,0.31767209,629.58,628.36,1.18596082]
[1739300161459,0.31767209,629.58,628.37,0.90512215]
[1739300161658,0.31767209,629.58,628.38,0.2920211]
[1739300162058,0.31767209,629.58,628.39,0.2920211]
[1739300162254,0.31767209,629.58,628.4,0.2920211]
[1739300162460,0.31767209,629.58,628.41,0.2920211]
[1739300162654,0.31767209,629.58,628.42,0.2920211]
[1739300162853,0.31767209,629.58,628.37,0.2920211]
[1739300163056,0.31767209,629.58,628.38,0.2920211]
[1739300163560,0.31767209,629.58,628.39,0.2920211]
[1739300163959,0.31767209,629.58,628.4,0.2920211]
[1739300164256,0.31767209,629.58,628.41,0.61028465]
[1739300164464,0.31767209,629.58,628.42,0.2920211]
[1739300164763,0.31767209,629.58,628.43,0.2919352]
[1739300164958,0.31767209,629.58,628.44,0.2919352]
[1739300165159,0.31767209,629.58,628.45,0.2919352]
[1739300165360,0.31767209,629.58,628.41,0.31826355]
[1739300165361,0.31767209,629.58,628.42,0.2919352]
[1739300165562,0.31767209,629.58,628.43,0.2919352]
[1739300165757,0.31767209,629.58,628.44,0.2919352]
[1739300165957,0.31767209,629.58,628.45,0.2919352]
[1739300166162,0.31767209,629.58,628.45,0.90486321]
[1739300166358,0.31767209,629.58,628.42,0.2919352]
[1739300166567,0.31767209,629.58,628.43,1.47789602]
[1739300166767,0.31767209,629.58,628.44,1.22311157]
[1739300167066,1.16363262,630.27,628.45,0.61017849]
[1739300167261,0.31742001,630.08,628.46,0.31823823]
[1739300167465,0.31742001,630.08,628.47,0.2919352]
[1739300167866,0.31742001,630.08,628.48,0.3182281]
[1739300168062,0.31742001,630.08,628.49,0.2919352]
[1739300169169,0.31742001,630.08,628.5,0.31821797]
[1739300169370,0.31742001,630.08,628.51,0.2919352]
[1739300169569,0.31742001,630.08,628.52,0.31820785]
[1739300169869,0.31742001,630.08,628.53,0.2919352]
[1739300170063,0.31742001,630.08,628.54,0.31819772]
[1739300170267,0.31742001,630.08,628.55,0.2919352]
[1739300171867,0.31742001,630.08,628.56,0.3181876]
[1739300172264,0.31742001,630.08,628.57,0.2919352]
[1739300172671,0.31742001,630.08,628.58,0.31817747]
[1739300172870,0.31742001,630.08,628.59,0.2919352]
[1739300173067,0.31742001,630.08,628.58,0.31817747]
[1739300173373,0.31742001,630.08,628.59,0.2919352]
[1739300173572,0.31742001,630.08,628.6,0.2919352]
[1739300173772,0.31742001,630.08,628.58,0.31817747]
[1739300173971,0.31742001,630.08,628.59,0.29180643]
[1739300174167,0.31742001,630.08,628.6,0.29180643]
[1739300174369,0.31742001,630.08,628.61,0.60996872]
[1739300174571,0.31742001,630.08,628.62,1.22263209]
[1739300174767,0.31742001,630.08,628.63,1.22262703]
[1739300174972,0.31742001,630.08,628.64,0.29180643]
[1739300175167,0.31742001,630.08,628.65,0.31814205]
[1739300175372,0.31742001,630.08,628.66,0.29180643]
[1739300175573,0.31742001,630.08,628.67,0.31813192]
[1739300175773,0.31742001,630.08,628.68,0.29181883]
[1739300176775,0.31742001,630.08,628.69,0.3181218]
[1739300177077,0.31742001,630.08,628.7,0.29181883]
[1739300177475,0.31742001,630.08,628.69,0.3181218]
[1739300177776,0.31742001,630.08,628.7,0.29183702]
[1739300182078,0.31742001,630.08,628.69,0.3181218]
[1739300182275,0.31742001,630.08,628.7,0.29187892]
[1739300182583,0.31742001,630.08,628.69,0.3181218]
[1739300186486,0.31742001,630.08,628.7,0.29195263]
[1739300186487,0.27621169,630.07,628.7,0.29195263]
[1739300186686,0.31743512,630.05,628.71,0.29195774]
[1739300186885,0.31743512,630.05,628.7,0.29195774]
[1739300187086,0.31743512,630.05,628.71,0.29195774]
[1739300187289,0.27617405,630.04,628.7,0.29195774]
[1739300187483,0.31745023,630.02,628.71,0.29195774]
[1739300187780,0.31745023,630.02,628.72,0.29195774]
[1739300187781,0.27617405,630.01,628.72,0.29195774]
[1739300187986,0.31745023,630.02,628.7,0.29195774]
[1739300188181,0.27607104,630.01,628.71,0.29195774]
[1739300188379,0.31745023,630.02,628.72,0.29194737]
[1739300188580,0.27605385,630.01,628.73,0.29194737]
[1739300188780,0.27605385,630.01,628.7,0.29194737]
[1739300188985,0.27605385,630.01,628.71,0.29194737]
[1739300189182,0.31746535,629.99,628.7,0.29194737]
[1739300190182,0.31746535,629.99,628.71,0.29194686]
[1739300190384,0.31746535,629.99,628.7,0.29194686]
[1739300190584,0.27606088,629.98,628.72,0.29194686]
[1739300190790,0.27606088,629.98,628.73,0.29194686]
[1739300190990,0.31748047,629.96,628.74,0.29194686]
[1739300191185,0.27606088,629.95,628.7,0.29194686]
[1739300191388,0.27606088,629.95,628.71,0.29194686]
[1739300191588,0.31749559,629.93,628.7,0.29194686]
[1739300191790,0.31749559,629.93,628.71,0.29194686]
[1739300191986,0.31749559,629.93,628.7,0.29194686]
[1739300193891,0.31749559,629.93,628.71,0.29195985]
[1739300194089,0.31749559,629.93,628.72,0.29195985]
[1739300194291,0.31749559,629.93,628.7,0.29195985]
[1739300194486,0.31749559,629.93,628.69,0.3181218]
[1739300194487,0.27620447,629.92,628.71,0.29195985]
[1739300194788,0.31750567,629.91,628.72,0.29195985]
[1739300194994,0.31750567,629.91,628.7,0.29195985]
[1739300195294,0.31750567,629.91,628.71,0.29195985]
[1739300195694,0.31750567,629.91,628.72,0.29195985]
[1739300195895,0.31750567,629.91,628.7,0.29195985]
[1739300196195,0.31750567,629.91,628.71,0.29195985]
[1739300196596,0.31750567,629.91,628.72,0.29195985]
[1739300196789,0.31750567,629.91,628.73,0.29195985]
[1739300196996,0.31750567,629.91,628.7,0.29195985]
[1739300197295,0.31750567,629.91,628.69,0.3181218]
[1739300197296,0.31750567,629.91,628.71,0.29195985]
[1739300197491,0.31750567,629.91,628.7,0.29195985]
[1739300203601,0.31750567,629.91,628.71,0.29195985]
[1739300203802,0.31750567,629.91,628.72,0.29195985]
[1739300204000,0.31750567,629.91,628.73,0.29195985]
[1739300204203,0.31750567,629.91,628.7,0.29195985]
[1739300204399,0.31750567,629.91,628.71,0.29195985]
[1739300204601,0.31750567,629.91,628.71,0.9048569]
[1739300204801,0.31750567,629.91,628.7,0.29195985]
[1739300205000,0.31750567,629.91,628.71,0.29195985]
[1739300205500,0.31750567,629.91,628.69,0.3181218]
[1739300205701,0.31750567,629.91,628.7,0.29195985]
[1739300206704,0.31750567,629.91,628.69,0.3181218]
[1739300206705,0.31750567,629.91,628.71,0.29187395]
[1739300206900,0.31750567,629.91,628.7,0.29187395]
[1739300207100,0.31750567,629.91,628.71,0.29187395]
[1739300207405,0.31750567,629.91,628.72,0.29187395]
[1739300207601,0.31750567,629.91,628.73,0.29187395]
[1739300207806,0.31750567,629.91,628.7,0.29187395]
[1739300208004,0.31750567,629.91,628.71,0.29187395]
[1739300208204,0.31750567,629.91,628.7,0.29187395]
[1739300208403,0.31750567,629.91,628.72,0.29187395]
[1739300208601,0.31750567,629.91,628.73,0.29187395]
[1739300208802,0.31750567,629.91,628.7,0.29187395]
[1739300209008,0.31750567,629.91,628.71,0.29187395]
[1739300209213,0.31750567,629.91,628.7,0.29187395]
[1739300209423,0.31750567,629.91,628.71,0.29187395]
[1739300209625,0.31750567,629.91,628.7,0.29187395]
[1739300211927,0.31750567,629.91,628.69,0.3181218]
[1739300212129,0.31750567,629.91,628.7,0.29184746]
[1739300222519,0.31750567,629.91,628.69,0.3181218]
[1739300222720,0.31750567,629.91,628.71,0.291903]
[1739300222915,0.31750567,629.91,628.72,0.291903]
[1739300223316,0.31750567,629.91,628.73,0.291903]
[1739300223516,0.31750567,629.91,628.7,0.291903]
[1739300223717,0.31750567,629.91,628.71,0.291903]
[1739300224014,0.31750567,629.91,628.72,0.291903]
[1739300224218,0.31750567,629.91,628.7,0.291903]
[1739300224519,0.31750567,629.91,628.71,0.29188337]
[1739300224714,0.31750567,629.91,628.72,0.29188337]
[1739300224914,0.31750567,629.91,628.7,0.29188337]
[1739300225117,0.31750567,629.91,628.71,0.29188337]
[1739300225317,0.31750567,629.91,628.72,0.29188337]
[1739300225517,0.31750567,629.91,628.73,0.29188337]
[1739300225717,0.31750567,629.91,628.74,0.29188337]
[1739300225921,0.31750567,629.91,628.7,0.29188337]
[1739300226116,0.31750567,629.91,628.71,0.29188612]
[1739300226319,0.31750567,629.91,628.7,0.29188612]
[1739300226620,0.31750567,629.91,628.71,0.29188612]
[1739300226919,0.31750567,629.91,628.72,0.29188612]
[1739300227120,0.31750567,629.91,628.7,0.29188612]
[1739300227320,0.31750567,629.91,628.71,0.29188612]
[1739300227514,0.31750567,629.91,628.7,0.29188612]
[1739300227715,0.31750567,629.91,628.69,0.3181218]
[1739300227917,0.31750567,629.91,628.71,0.29187647]
[1739300228121,0.31750567,629.91,628.69,0.3181218]
[1739300228424,0.31750567,629.91,628.7,0.29187905]
[1739300230024,0.31750567,629.91,628.71,0.29190738]
[1739300230224,0.31750567,629.91,628.72,0.29190738]
[1739300230424,0.31750567,629.91,628.7,0.29190738]
[1739300236038,0.31750567,629.91,628.69,0.3181218]
[1739300236039,0.31750567,629.91,628.71,0.29191206]
[1739300236332,0.31750567,629.91,628.72,0.29191206]
[1739300236535,0.31750567,629.91,628.7,0.29191206]
[1739300236732,0.31750567,629.91,628.71,0.29191206]
[1739300236928,0.31750567,629.91,628.7,0.29191206]
[1739300237126,0.31750567,629.91,628.71,0.29191206]
[1739300237326,0.31750567,629.91,628.72,0.29191763]
[1739300237530,0.31750567,629.91,628.7,0.29191763]
[1739300237731,0.31750567,629.91,628.71,0.29191763]
[1739300237932,0.31750567,629.91,628.72,0.29191763]
[1739300238134,0.31750567,629.91,628.73,0.29191763]
[1739300238332,0.31750567,629.91,628.7,0.29191763]
[1739300238527,0.31750567,629.91,628.71,0.29191763]
[1739300238730,0.31750567,629.91,628.72,0.29191763]
[1739300238933,0.31750567,629.91,628.73,0.29191763]
[1739300239134,0.31750567,629.91,628.7,0.29191763]
[1739300239331,0.31750567,629.91,628.71,0.29191763]
[1739300239534,0.31750567,629.91,628.7,0.29191763]
[1739300239736,0.31750567,629.91,628.71,0.29191763]
[1739300239934,0.31750567,629.91,628.72,0.29191763]
[1739300240236,0.31750567,629.91,628.73,0.29191763]
[1739300240534,0.31750567,629.91,628.74,0.29191763]
[1739300240733,0.31750567,629.91,628.75,0.29191763]
[1739300240935,0.31750567,629.91,628.69,0.3181218]
[1739300241234,0.31750567,629.91,628.7,0.29191763]
[1739300242636,0.31750567,629.91,628.69,0.3181218]
[1739300242838,0.31750567,629.91,628.7,0.29189871]
[1739300244539,0.31750567,629.91,628.69,0.3181218]
[1739300244738,0.31750567,629.91,628.7,0.29190453]
[1739300250237,0.31750567,629.91,628.7,0.61002127]
[1739300250441,0.31750567,629.91,628.71,0.29190453]
[1739300250641,0.31750567,629.91,628.72,0.29190453]
[1739300250841,0.31750567,629.91,628.73,0.29190453]
[1739300251036,0.31750567,629.91,628.74,0.29190453]
[1739300251241,0.31750567,629.91,628.71,0.29190453]
[1739300251443,0.31750567,629.91,628.72,0.29190453]
[1739300251741,0.31750567,629.91,628.73,0.29190453]
[1739300251940,0.31750567,629.91,628.74,0.29190453]
[1739300252137,0.31750567,629.91,628.71,0.29190453]
[1739300252344,0.31750567,629.91,628.72,0.29190453]
[1739300252645,0.31750567,629.91,628.73,0.29190453]
[1739300252944,0.31750567,629.91,628.74,0.29190453]
[1739300253142,0.31750567,629.91,628.71,0.29190453]
[1739300253737,0.31750567,629.91,628.54,1.18596082]
[1739300253941,0.31750567,629.91,628.55,0.29198698]
[1739300255340,0.31750567,629.91,628.56,0.29195214]
[1739300255543,0.31750567,629.91,628.57,0.29195214]
[1739300255845,0.31750567,629.91,628.58,0.29195214]
[1739300256042,0.31750567,629.91,628.55,0.29195214]
[1739300256338,0.31750567,629.91,628.56,0.29195214]
[1739300256541,0.31750567,629.91,628.42,0.29195214]
[1739300256737,0.31750567,629.91,628.43,0.61020556]
[1739300256947,0.31750567,629.91,628.44,0.6102005]
[1739300257145,0.31750567,629.91,628.45,0.61019825]
[1739300257348,0.31750567,629.91,628.46,0.61019319]
[1739300257645,0.31750567,629.91,628.47,0.29195496]
[1739300258442,0.31750567,629.91,628.48,0.3182281]
[1739300258745,0.31750567,629.91,628.49,0.29195496]
[1739300259151,0.31750567,629.91,628.5,0.31821797]
[1739300259350,0.31750567,629.91,628.51,0.29195496]
[1739300259748,0.31750567,629.91,628.52,0.31820785]
[1739300259944,0.31750567,629.91,628.53,0.29195496]
[1739300260344,0.31750567,629.91,628.53,0.61015775]
[1739300260548,0.31750567,629.91,628.54,0.29195496]
[1739300262549,0.31750567,629.91,628.53,0.31820279]
[1739300262746,0.31750567,629.91,628.54,0.29191171]
[1739300264253,0.31750567,629.91,628.53,0.31820279]
[1739300264453,0.31750567,629.91,628.54,0.29191697]
[1739300265350,0.31750567,629.91,628.55,0.31819266]
[1739300265556,0.31750567,629.91,628.56,0.29191697]
[1739300265755,0.31750567,629.91,628.57,0.31818254]
[1739300266055,0.31750567,629.91,628.58,0.29191697]
[1739300266254,0.31750567,629.91,628.43,1.18596082]
[1739300266255,0.31750567,629.91,628.59,0.31817241]
[1739300266454,0.31750567,629.91,628.6,0.2918831]
[1739300266652,0.31750567,629.91,628.61,0.31816229]
[1739300266857,0.31750567,629.91,628.62,0.2918831]
[1739300267051,0.31750567,629.91,628.62,0.61004033]
[1739300267251,0.31750567,629.91,628.63,0.2918831]
[1739300267656,0.31750567,629.91,628.64,0.31814711]
[1739300268058,0.31750567,629.91,628.65,0.2918831]
[1739300268357,0.31750567,629.91,628.66,0.31813698]
[1739300268559,0.31750567,629.91,628.67,0.2918831]
[1739300269860,0.31750567,629.91,628.66,0.31813698]
[1739300270158,0.31750567,629.91,628.67,0.29191456]
[1739300273556,0.31750567,629.91,628.66,0.31813698]
[1739300273754,0.31750567,629.91,628.67,0.29190146]
[1739300275062,0.31750567,629.91,628.68,0.31812686]
[1739300275262,0.31750567,629.91,628.69,0.29190146]
[1739300278962,0.31750567,629.91,628.68,0.31812686]
[1739300279161,0.31750567,629.91,628.7,0.29189434]
[1739300279362,0.31750567,629.91,628.71,0.29189434]
[1739300279562,0.31750567,629.91,628.69,0.29189434]
[1739300279762,0.31750567,629.91,628.7,0.29189434]
[1739300279959,0.31750567,629.91,628.71,0.29189434]
[1739300280164,0.31750567,629.91,628.69,0.29189434]
[1739300280357,0.31750567,629.91,628.7,0.29189434]
[1739300280562,0.31750567,629.91,628.71,0.29189434]
[1739300280859,0.31750567,629.91,628.69,0.29189434]
[1739300281059,0.31750567,629.91,628.7,0.29189434]
[1739300281461,0.31750567,629.91,628.68,0.31812686]
[1739300281861,0.31750567,629.91,628.69,0.29194807]
[1739300282061,0.31750567,629.91,628.68,0.31812686]
[1739300282262,0.31750567,629.91,628.69,0.29194232]
[1739300282465,0.31750567,629.91,628.68,0.31812686]
[1739300282662,0.31750567,629.91,628.69,0.29193683]
[1739300285867,0.31750567,629.91,628.68,0.31812686]
[1739300286068,0.31750567,629.91,628.69,0.29191037]
[1739300286970,6.1294794,629.9,628.69,0.29191037]
[1739300287171,6.44699515,629.89,628.69,0.29191037]
[1739300287370,6.44700019,629.88,628.69,0.29191037]
[1739300287564,6.44700019,629.88,628.68,0.31812686]
[1739300287565,9.25499838,629.87,628.68,0.31812686]
[1739300287868,6.44701027,629.86,628.69,0.29193359]
[1739300288067,6.1294794,629.85,628.69,0.29193359]
[1739300288268,6.44702036,629.84,628.69,0.29193359]
[1739300288571,0.317546,629.83,628.7,0.29193476]
[1739300288875,0.317546,629.83,628.71,0.29193476]
[1739300289171,0.317546,629.83,628.72,0.29193476]
[1739300289671,0.317546,629.83,628.73,0.29193476]
[1739300289867,0.317546,629.83,628.74,0.29193476]
[1739300290071,0.317546,629.83,628.69,0.29193476]
[1739300290271,0.317546,629.83,628.7,0.29193476]
[1739300290566,0.317546,629.83,628.68,0.31812686]
[1739300290567,0.317546,629.83,628.71,0.29193476]
[1739300290772,0.317546,629.83,628.68,0.31812686]
[1739300290773,0.317546,629.83,628.69,0.29193476]
[1739300290970,0.317546,629.83,628.7,0.29193476]
[1739300291166,0.317546,629.83,628.69,0.29193476]
[1739300294978,0.317546,629.83,628.68,0.31812686]
[1739300295177,0.317546,629.83,628.69,0.29190409]
[1739300297080,0.317546,629.83,628.7,0.31811674]
[1739300297277,0.317546,629.83,628.71,0.29190409]
[1739300297477,0.317546,629.83,628.72,0.31810662]
[1739300297878,0.317546,629.83,628.73,0.29190409]
[1739300298179,0.317546,629.83,628.74,0.31809651]
[1739300298381,0.317546,629.83,628.75,0.29190409]
[1739300298578,0.317546,629.83,628.76,0.31808639]
[1739300298774,0.317546,629.83,628.77,0.29190409]
[1739300298978,0.317546,629.83,628.77,0.60998542]
[1739300299280,0.317546,629.83,628.78,0.29190409]
[1739300300680,0.317546,629.83,628.79,0.29179628]
[1739300300979,0.317546,629.83,628.8,0.29179628]
[1739300301175,0.317546,629.83,628.77,0.31808133]
[1739300301381,0.317546,629.83,628.78,0.29179825]
[1739300302383,0.317546,629.83,628.79,0.29178072]
[1739300302583,0.317546,629.83,628.78,0.29178072]
[1739300302882,0.317546,629.83,628.79,0.29178072]
[1739300303083,0.317546,629.83,628.78,0.29178072]
[1739300303282,0.317546,629.83,628.79,0.29178072]
[1739300303585,0.317546,629.83,628.8,0.29178072]
[1739300303878,0.317546,629.83,628.81,0.29178072]
[1739300304081,0.317546,629.83,628.78,0.29178072]
[1739300304278,0.317546,629.83,628.82,0.29178072]
[1739300304479,0.317546,629.83,628.83,0.29178072]
[1739300304678,0.317546,629.83,628.84,0.29178072]
[1739300304878,0.317546,629.83,628.78,0.29178072]
[1739300305079,0.317546,629.83,628.79,0.29178072]
[1739300305279,0.317546,629.83,628.78,0.29178072]
[1739300305479,0.317546,629.83,628.79,0.29178072]
[1739300305682,0.317546,629.83,628.78,0.29178072]
[1739300305881,0.317546,629.83,628.8,0.29178072]
[1739300306080,1.16363262,630.9,628.81,0.31806109]
[1739300306279,0.3170577,630.8,628.82,0.29178072]
[1739300306483,0.2757039,630.79,628.83,0.31805098]
[1739300306782,0.31707278,630.77,628.84,0.29178072]
[1739300306979,0.2757039,630.76,628.85,0.31804086]
[1739300307183,0.31708786,630.74,628.86,0.29178072]
[1739300307386,0.2757039,630.73,628.87,0.31803075]
[1739300307685,0.31710294,630.71,628.88,0.29178072]
[1739300307885,0.2757039,630.7,628.89,0.31802063]
[1739300308087,0.31711803,630.68,628.9,0.29178072]
[1739300308286,0.31711803,630.68,628.9,0.6097963]
[1739300308486,0.2757039,630.67,628.91,0.29178072]
[1739300308683,0.31713311,630.65,628.91,0.29178072]
[1739300308881,0.2757039,630.64,628.91,0.29178072]
[1739300309081,0.3171482,630.62,628.91,0.29178072]
[1739300309482,0.27569412,630.61,628.91,0.29178072]
[1739300309679,0.27570757,630.6,628.9,0.31801558]
[1739300309981,0.27570757,630.59,628.91,0.29176195]
[1739300310182,0.27570757,630.61,628.91,0.29176195]
[1739300310383,0.27570757,630.58,628.91,0.29176195]
[1739300310586,0.31717838,630.56,628.91,0.29176195]
[1739300310786,0.27570757,630.55,628.91,0.29176195]
[1739300310986,0.31719347,630.53,628.91,0.29176195]
[1739300312280,0.27570633,630.52,628.91,0.29176195]
[1739300312481,0.31720856,630.5,628.91,0.29176195]
[1739300312684,0.27570633,630.49,628.91,0.29176195]
[1739300312882,0.31722365,630.47,628.91,0.29176195]
[1739300314688,0.27576946,630.46,628.91,0.29176195]
[1739300314985,0.31723875,630.44,628.91,0.29176195]
[1739300315386,0.31723875,630.44,628.92,0.29176272]
[1739300315582,0.31723875,630.44,628.91,0.29176272]
[1739300315787,0.31723875,630.44,628.92,0.29176272]
[1739300315984,0.27575969,630.43,628.93,0.29176272]
[1739300316190,0.31725385,630.41,628.94,0.29176272]
[1739300316390,0.31725385,630.41,628.9,0.31801558]
[1739300316891,0.31725385,630.41,628.91,0.29174499]
[1739300317191,0.31725385,630.41,628.92,0.31800546]
[1739300317391,0.31725385,630.41,628.93,0.29174499]
[1739300319392,0.31725385,630.41,628.94,0.29174295]
[1739300319592,0.31725385,630.41,628.95,0.29174295]
[1739300319792,0.31725385,630.41,628.96,0.29174295]
[1739300319990,0.31725385,630.41,628.93,0.29174295]
[1739300320188,0.31725385,630.41,628.94,0.29174295]
[1739300320387,0.31725385,630.41,628.93,0.29174295]
[1739300320787,0.31725385,630.41,628.92,0.31800546]
[1739300321694,0.31725385,630.41,628.93,0.29175148]
[1739300324395,0.31725385,630.41,628.94,0.31799535]
[1739300324596,0.31725385,630.41,628.95,0.29175148]
[1739300325389,0.31725385,630.41,628.96,0.29170932]
[1739300325591,0.31725385,630.41,628.95,0.29170932]
[1739300325794,0.31725385,630.41,628.96,0.29170932]
[1739300326197,0.31725385,630.41,628.97,0.31798018]
[1739300326396,0.31725385,630.41,628.98,0.29170932]
[1739300326602,0.31725385,630.41,628.99,0.31797007]
[1739300326791,0.31725385,630.41,629.0,0.29170932]
[1739300326996,0.31725385,630.41,629.01,0.31795996]
[1739300327197,0.31725385,630.41,629.02,0.29170932]
[1739300327390,0.31725385,630.41,629.02,0.60966423]
[1739300327698,0.31725385,630.41,629.03,0.29170932]
[1739300332095,0.31725385,630.41,629.04,0.3179448]
[1739300332297,0.31725385,630.41,629.05,0.29170932]
[1739300332499,0.31725385,630.41,629.05,0.60964907]
[1739300332800,0.31725385,630.41,629.05,0.31793975]
[1739300332995,0.31725385,630.41,629.06,0.29167082]
[1739300335803,0.31725385,630.41,629.07,0.31792964]
[1739300336002,0.31725385,630.41,629.08,0.29167082]
[1739300336203,0.31725385,630.41,629.09,0.31791953]
[1739300336403,0.31725385,630.41,629.1,0.29167082]
[1739300336703,0.31725385,630.41,629.11,0.31790942]
[1739300336902,0.31725385,630.41,629.12,0.29167082]
[1739300337203,0.31725385,630.41,629.13,0.31789932]
[1739300337404,0.31725385,630.41,629.14,0.29167082]
[1739300337597,0.31725385,630.41,629.15,0.31788921]
[1739300337796,0.31725385,630.41,629.16,0.29167082]
[1739300338404,0.31725385,630.41,629.15,0.31788921]
[1739300338602,0.31725385,630.41,629.16,0.2916435]
[1739300340299,0.31725385,630.41,629.17,0.29164019]
[1739300340501,0.31725385,630.41,629.17,0.6095193]
[1739300340700,0.31725385,630.41,629.18,0.90387597]
[1739300340900,0.31725385,630.41,629.19,0.317869]
[1739300341102,0.31725385,630.41,629.2,0.291585]
[1739300341600,0.31725385,630.41,629.21,0.291585]
[1739300341805,0.31725385,630.41,629.19,0.317869]
[1739300341806,0.31725385,630.41,629.2,0.291585]
[1739300342005,0.31725385,630.41,629.19,0.317869]
[1739300342305,0.31725385,630.41,629.2,0.291585]
[1739300348512,0.31725385,630.41,629.19,0.317869]
[1739300348713,0.31725385,630.41,629.2,0.29166559]
[1739300352512,0.31725385,630.41,629.19,0.317869]
[1739300352717,0.31725385,630.41,629.2,0.29168971]
[1739300356114,0.31725385,630.41,629.19,0.317869]
[1739300356319,0.31725385,630.41,629.2,0.29171047]
[1739300359724,0.31725385,630.41,629.19,0.317869]
[1739300364621,0.31725385,630.41,629.2,0.29173038]
[1739300365427,0.31725385,630.41,629.19,0.317869]
[1739300366533,0.31725385,630.41,628.79,1.18596082]
[1739300366833,0.31725385,630.41,628.8,0.29175139]
[1739300367227,0.31725385,630.41,628.79,1.18596082]
[1739300367427,0.31725385,630.41,628.8,0.29174368]
[1739300368127,0.31725385,630.41,628.76,0.29174368]
[1739300368332,0.31725385,630.41,628.77,0.29174368]
[1739300368534,0.31725385,630.41,628.76,0.29174368]
[1739300368730,0.31725385,630.41,628.77,0.60982501]
[1739300368928,0.31725385,630.41,628.78,0.60981995]
[1739300369229,0.31725385,630.41,628.79,0.60981489]
[1739300369433,0.31725385,630.41,628.8,0.60980983]
[1739300369734,0.31725385,630.41,628.81,0.60980477]
[1739300369934,0.31725385,630.41,628.82,0.60979972]
[1739300370233,0.31725385,630.41,628.83,0.60979466]
[1739300370434,0.31725385,630.41,628.84,0.6097896]
[1739300370636,0.31725385,630.41,628.85,0.31804086]
[1739300370836,0.31725385,630.41,628.86,0.29174604]
[1739300371235,0.31725385,630.41,628.87,0.31803075]
[1739300371436,0.31725385,630.41,628.88,0.29174604]
[1739300371637,0.31725385,630.41,628.89,0.31802063]
[1739300371837,0.31725385,630.41,628.9,0.29174604]
[1739300372135,0.31725385,630.41,628.91,0.31801052]
[1739300372333,0.31725385,630.41,628.92,0.29174604]
[1739300372740,0.31725385,630.41,628.93,0.6096696]
[1739300372940,0.31725385,630.41,628.94,0.60966454]